Workbook

Sheet 总成绩排名表
A1: 附件1
A2: 贵州威宁草海机场有限责任公司 招聘工作人员总成绩排名及体检人员名单
A3: 序号 | B3: 职位 代码 | C3: 招考单位 | D3: 职位名称 | E3: 姓名 | F3: 准考证号 | G3: 笔试 成绩 | H3: 折算后 笔试成绩 （60%） | I3: 面试 成绩 | J3: 折算后 面试成绩 （40%） | K3: 总成绩 | L3: 排名 | M3: 是否进入体检 | N3: 备注
A4: 1 | B4: 01 | C4: 贵州威宁草海机场综合服务有限责任公司 | D4: 财务人员 | E4: ="马文参" -> 马文参 | F4: ="20240108" -> 20240108 | G4: 63 | H4: =G4*0.6 -> 37.80 | I4: 76.65 | J4: =I4*0.4 -> 30.66 | K4: =H4+J4 -> 68.46 | L4: 1 | M4: 是
A5: 2 | B5: 01 | C5: 贵州威宁草海机场综合服务有限责任公司 | D5: 财务人员 | E5: ="吕保仓" -> 吕保仓 | F5: ="20240102" -> 20240102 | G5: 59 | H5: =G5*0.6 -> 35.40 | I5: 76.16 | J5: =I5*0.4 -> 30.46 | K5: =H5+J5 -> 65.86 | L5: 2 | M5: 否
A6: 3 | B6: 01 | C6: 贵州威宁草海机场综合服务有限责任公司 | D6: 财务人员 | E6: ="李文静" -> 李文静 | F6: ="20240101" -> 20240101 | G6: 53 | H6: =G6*0.6 -> 31.80 | I6: 77.65 | J6: =I6*0.4 -> 31.06 | K6: =H6+J6 -> 62.86 | L6: 3 | M6: 否
A7: 4 | B7: 01 | C7: 贵州威宁草海机场综合服务有限责任公司 | D7: 财务人员 | E7: ="陈敏" -> 陈敏 | F7: ="20240109" -> 20240109 | G7: 52 | H7: =G7*0.6 -> 31.20 | I7: 77.79 | J7: =I7*0.4 -> 31.12 | K7: =H7+J7 -> 62.32 | L7: 4 | M7: 否
A8: 5 | B8: 01 | C8: 贵州威宁草海机场综合服务有限责任公司 | D8: 财务人员 | E8: ="顾悦" -> 顾悦 | F8: ="20240106" -> 20240106 | G8: 49 | H8: =G8*0.6 -> 29.40 | I8: 74.71 | J8: =I8*0.4 -> 29.88 | K8: =H8+J8 -> 59.28 | L8: 5 | M8: 否
